bitfinex/quotes_ETHUSD_20251127
["timestamp","ask_amount","ask_price","bid_price","bid_amount"]
[1764261665519,0.21,3026.7,3026.3,1.6682888]
[1764261666523,0.21,3026.7,3026.3,2.1243888]
[1764261666816,0.21,3026.7,3026.3,5.42867635]
[1764261667525,0.21,3026.7,3026.4,0.88270455]
[1764261667700,3.51394685,3026.7,3026.4,0.88270455]
[1764261668022,0.0801,3026.5,3026.4,0.88270455]
[1764261668232,0.43950469,3026.5,3026.3,0.88270455]
[1764261668395,0.0998,3026.1,3026.0,0.001]
[1764261668592,0.3106,3026.1,3026.0,0.001]
[1764261668792,4.08418345,3026.1,3026.0,0.001]
[1764261669507,0.7796,3026.1,3026.0,0.001]
[1764261669714,0.3106,3026.1,3026.0,0.001]
[1764261669910,0.0998,3026.1,3026.0,0.4665]
[1764261670113,0.21,3026.5,3026.0,0.95007133]
[1764261670313,0.0575,3026.1,3026.0,0.001]
[1764261670520,0.7551,3026.1,3026.0,0.001]
[1764261670725,4.05968345,3026.1,3026.0,0.001]
[1764261670927,0.0575,3026.1,3026.0,0.001]
[1764261671223,0.2675,3026.1,3026.0,0.001]
[1764261671426,0.0575,3026.1,3026.0,0.001]
[1764261671918,0.36693213,3026.1,3026.0,0.001]
[1764261672695,0.30943213,3026.1,3026.0,0.4936]
[1764261673534,0.30943213,3026.1,3026.0,0.001]
[1764261673900,4.15911558,3026.1,3026.0,0.001]
[1764261674110,5.02627529,3026.1,3026.0,0.001]
[1764261677115,5.64177929,3026.1,3026.0,0.001]
[1764261678529,5.68308658,3026.1,3026.0,0.001]
[1764261679916,5.68245979,3026.1,3026.0,0.001]
[1764261681735,6.4080539,3026.1,3026.0,0.001]
[1764261682712,12.7880539,3026.1,3026.0,0.001]
[1764261683041,0.505304,3025.8,3025.7,0.001]
[1764261683217,0.505304,3025.5,3025.4,0.001]
[1764261683419,7.84950934,3025.5,3025.4,0.001]
[1764261683622,0.505504,3025.2,3024.8,0.001]
[1764261683929,5.32137002,3025.2,3024.8,0.001]
[1764261684132,6.23064431,3025.2,3024.8,0.001]
[1764261684743,6.44064431,3025.2,3024.8,0.001]
[1764261687119,6.48196389,3025.2,3024.8,0.001]
[1764261688222,6.19856389,3025.2,3024.8,0.001]
[1764261688431,6.40856389,3025.2,3024.8,0.001]
[1764261689036,6.19856389,3025.2,3024.8,0.001]
[1764261689349,6.40856389,3025.2,3024.8,0.001]
[1764261689525,6.30856389,3025.2,3024.8,0.001]
[1764261689859,6.48196389,3025.2,3024.8,0.001]
[1764261690342,6.27196389,3025.2,3024.8,0.001]
[1764261690746,0.72532492,3025.2,3024.8,0.001]
[1764261691047,3.98957191,3025.2,3024.8,0.001]
[1764261691270,4.03089149,3025.2,3024.8,0.001]
[1764261691435,4.51089149,3025.2,3024.8,0.001]
[1764261692543,4.91639549,3025.2,3024.8,0.001]
[1764261692739,5.7385813,3025.2,3024.8,0.001]
[1764261692939,5.2585813,3025.2,3024.8,0.001]
[1764261694034,5.7385813,3025.2,3024.8,0.001]
[1764261694230,5.2585813,3025.2,3024.8,0.001]
[1764261694953,5.0485813,3025.2,3024.8,0.001]
[1764261695165,0.883504,3025.1,3024.4,0.0165386]
[1764261695328,0.505504,3023.7,3023.3,0.001]
[1764261695667,16.90498262,3023.7,3023.3,0.001]
[1764261695821,1.13109811,3023.6,3023.3,0.001]
[1764261696022,1.72479811,3023.4,3023.3,0.001]
[1764261696262,2.03360345,3023.4,3023.3,0.001]
[1764261696429,2.24360345,3023.4,3023.3,0.001]
[1764261696628,2.40500345,3023.4,3023.3,0.001]
[1764261697028,5.71253801,3023.4,3023.3,0.001]
[1764261697228,6.47916887,3023.4,3023.3,0.001]
[1764261698856,6.10776887,3023.4,3023.3,0.001]
[1764261699069,6.47916887,3023.4,3023.3,0.001]
[1764261699426,6.31776887,3023.4,3023.3,0.001]
[1764261703260,5.61406887,3023.4,3023.3,0.001]
[1764261703432,0.40880534,3023.4,3023.3,0.9246]
[1764261703634,0.40880534,3023.4,3023.3,0.001]
[1764261703635,3.9263399,3023.4,3023.3,0.001]
[1764261704052,0.56014952,3023.4,3023.3,0.4683]
[1764261704261,3.86768408,3023.4,3023.3,0.9246]
[1764261704457,3.96768408,3023.4,3023.3,0.9246]
[1764261705437,0.61880534,3023.4,3023.3,0.9246]
[1764261705637,3.9263399,3023.4,3023.3,0.9246]
[1764261706255,0.40880534,3023.4,3023.3,0.9246]
[1764261706457,0.61880534,3023.4,3023.3,0.9246]
[1764261706660,3.9263399,3023.4,3023.3,0.9246]
[1764261707154,3.9255399,3023.4,3023.3,0.9246]
[1764261707663,0.30800534,3023.4,3023.3,0.9246]
[1764261707843,0.51800534,3023.4,3023.3,0.9246]
[1764261708940,3.8255399,3023.4,3023.3,0.9246]
[1764261709141,3.9255399,3023.4,3023.3,0.9246]
[1764261709362,0.61800534,3023.4,3023.3,0.9246]
[1764261711138,3.9255399,3023.4,3023.3,0.9246]
[1764261711365,3.9255399,3023.4,3023.3,0.001]
[1764261711763,4.0352399,3023.4,3023.3,0.001]
[1764261712071,5.62331114,3023.4,3023.3,0.001]
[1764261712652,5.66465532,3023.4,3023.3,0.001]
[1764261715871,5.21635532,3023.4,3023.3,0.001]
[1764261716744,5.00635532,3023.4,3023.3,0.001]
[1764261716950,5.10665532,3023.4,3023.3,0.001]
[1764261717650,5.21635532,3023.4,3023.3,0.001]
[1764261718855,5.66465532,3023.4,3023.3,0.001]
[1764261719056,5.21635532,3023.4,3023.3,0.001]
[1764261720077,6.39024943,3023.4,3023.3,0.001]
[1764261720272,6.34890525,3023.4,3023.3,0.001]
[1764261720575,12.32047543,3023.4,3023.3,0.001]
[1764261720771,12.27913125,3023.4,3023.3,0.001]
[1764261721148,6.34890525,3023.4,3023.3,0.001]
[1764261721350,6.39024943,3023.4,3023.3,0.001]
[1764261721853,5.94194943,3023.4,3023.3,0.001]
[1764261722053,5.21674543,3023.4,3023.3,0.4683]
[1764261722261,5.91234543,3023.4,3023.3,0.001]
[1764261722674,6.31784943,3023.4,3023.3,0.001]
[1764261723049,4.39315132,3023.4,3023.3,0.4683]
[1764261723244,4.39315132,3023.4,3023.3,0.9246]
[1764261723245,3.9275399,3023.4,3023.3,0.9246]
[1764261723448,3.96888408,3023.4,3023.3,0.9246]
[1764261724062,3.75888408,3023.4,3023.3,0.9246]
[1764261724265,3.8275399,3023.4,3023.3,0.9246]
[1764261724772,3.86888408,3023.4,3023.3,0.9246]
[1764261725373,3.8275399,3023.4,3023.3,0.9246]
[1764261725578,3.86888408,3023.4,3023.3,0.9246]
[1764261725782,3.96888408,3023.4,3023.3,0.9246]
[1764261726577,3.86888408,3023.4,3023.3,0.9246]
[1764261726876,0.31000534,3023.4,3023.3,4.23224396]
[1764261727074,0.31000534,3023.4,3023.3,4.98624329]
[1764261728178,0.31000534,3023.4,3023.3,1.67859933]
[1764261728361,0.31000534,3023.4,3023.3,4.23224396]
[1764261731063,0.30920534,3023.4,3023.3,4.23224396]
[1764261732680,0.002,3023.4,3023.3,4.23224396]
[1764261732875,0.002,3023.4,3023.3,0.9246]
[1764261733180,0.002,3023.4,3023.3,4.23224396]
[1764261733384,0.002,3023.4,3023.3,5.07430777]
[1764261736171,0.002,3023.4,3023.3,5.79990188]
[1764261736375,0.002,3023.4,3023.3,6.68054717]
[1764261736570,0.002,3023.8,3023.3,13.29583509]
[1764261736772,0.002,3023.8,3023.7,3.7700064]
[1764261736986,0.002,3023.8,3023.7,5.3642988]
[1764261737286,0.002,3023.8,3023.7,5.8435988]
[1764261739491,0.002,3023.8,3023.7,2.5363924]
[1764261739695,0.002,3023.8,3023.7,5.8435988]
[1764261741261,0.002,3023.8,3023.7,2.5363924]
[1764261741583,0.002,3023.8,3023.7,0.4628]
[1764261742502,0.002,3023.8,3023.7,0.9421]
[1764261743384,0.002,3023.8,3023.7,0.4628]
[1764261743585,0.002,3023.8,3023.7,0.9421]
[1764261746311,0.002,3023.8,3023.7,0.4628]
[1764261746871,0.002,3023.8,3023.3,4.03417744]
[1764261747071,0.002,3023.8,3023.7,0.4628]
[1764261747292,0.31055935,3023.8,3023.3,4.03417744]
[1764261747491,0.31055935,3023.8,3023.4,0.4793]
[1764261747696,0.31055935,3023.8,3023.7,0.4628]
[1764261748010,0.0785,3023.5,3023.3,0.001]
[1764261748220,0.41335935,3023.4,3023.3,0.001]
[1764261748572,0.40855935,3023.4,3023.3,0.001]
[1764261748775,0.30855935,3023.4,3023.3,4.25074396]
[1764261748974,0.002,3023.8,3023.3,4.25074396]
[1764261749225,0.3086553,3023.7,3023.4,0.4250744]
[1764261749386,0.3086553,3023.6,3023.3,0.4803]
[1764261749708,3.30915187,3023.8,3023.5,0.4628]
[1764261750007,0.3087437,3023.7,3023.5,0.4793]
[1764261750303,0.3087437,3023.6,3023.5,0.4793]
[1764261750481,0.30877333,3023.7,3023.6,0.4628]
[1764261750800,0.30877333,3023.7,3023.5,0.4793]
[1764261751104,0.30877333,3023.6,3023.5,0.85809428]
[1764261751609,0.002,3023.8,3023.5,1.32089428]
[1764261751791,0.30897797,3023.7,3023.5,0.4628]
[1764261751992,0.002,3023.8,3023.5,0.4628]
[1764261752291,0.30897926,3023.7,3023.5,0.4628]
[1764261752606,0.002,3023.8,3023.7,0.4628]
[1764261752804,0.31111658,3023.8,3023.7,0.4628]
[1764261754604,0.31111658,3023.8,3023.7,0.9421]
[1764261754919,0.31031658,3023.8,3023.7,1.36703735]
[1764261756031,0.31031658,3023.8,3023.7,0.9421]
[1764261756832,0.31095072,3023.8,3023.7,0.9421]
[1764261757892,0.31095072,3023.8,3023.7,4.2493064]
[1764261758502,0.31095072,3023.8,3023.7,0.9421]
[1764261758702,0.31095072,3023.8,3023.7,4.2493064]
[1764261758906,0.31095072,3023.8,3023.7,6.04990294]
[1764261759321,0.31095072,3023.8,3023.7,2.74269654]
[1764261759945,0.31095072,3023.8,3023.7,1.82606806]
[1764261761908,0.31095072,3023.8,3023.7,5.13327446]
[1764261762525,0.31095072,3023.8,3023.7,4.97490051]
[1764261762942,0.31094495,3023.8,3023.7,4.97490051]
[1764261763243,0.002,3024.1,3023.8,1.67151566]
[1764261763411,0.002,3024.1,3024.0,0.4835]
[1764261763611,0.002,3024.1,3024.0,1.20909411]
[1764261763924,0.002,3024.1,3024.0,5.53020009]
[1764261766231,0.002,3024.1,3024.0,6.71041805]
[1764261766907,0.002,3024.1,3024.0,5.53020009]
[1764261769533,0.002,3024.1,3024.0,7.30176707]
[1764261770223,0.002,3024.1,3024.0,5.53020009]
[1764261772336,0.002,3024.1,3024.0,6.70895345]
[1764261772718,0.002,3024.1,3024.0,5.03110009]
[1764261772922,0.002,3024.1,3023.6,0.001]
[1764261772923,0.5473,3024.1,3023.6,0.001]
[1764261773241,0.0781,3023.7,3023.6,3.30828182]
[1764261773538,0.4685,3024.1,3023.7,0.4991]
[1764261773539,0.002,3024.1,3023.7,0.4991]
[1764261774113,0.002,3024.1,3023.7,1.22469411]
[1764261774745,0.002,3024.1,3023.7,3.80628262]
[1764261775111,0.30892453,3024.0,3023.7,7.11348902]
[1764261775317,0.002,3024.1,3023.7,7.11348902]
[1764261775515,0.30893647,3024.0,3023.7,7.11348902]
[1764261775717,0.002,3024.1,3023.7,7.11348902]
[1764261775931,0.30893646,3024.0,3023.7,7.11348902]
[1764261776130,0.002,3024.1,3023.7,7.11348902]
[1764261776327,0.30894829,3024.0,3023.8,0.4991]
[1764261776547,0.002,3024.1,3024.0,0.4835]
[1764261776748,0.31091844,3024.1,3024.0,3.7903783]
[1764261777049,0.31091844,3024.1,3024.0,5.01507241]
[1764261777342,0.0808,3024.1,3024.0,0.72559411]
[1764261778321,0.0808,3024.1,3024.0,4.03247241]
[1764261778522,0.08,3024.1,3024.0,4.03247241]
[1764261778823,0.0012,3024.1,3024.0,4.51597241]
[1764261779037,0.0012,3024.1,3024.0,1.66722145]
[1764261779345,0.0012,3024.1,3024.0,0.72559411]
[1764261779517,0.0012,3024.1,3024.0,4.03247241]
[1764261780953,0.4953,3024.1,3023.9,0.88421947]
[1764261781247,0.1,3023.8,3023.6,0.001]
[1764261781419,0.54471553,3023.7,3023.6,0.001]
[1764261781824,0.85591553,3023.7,3023.6,0.001]
[1764261782549,0.75471553,3023.7,3023.6,0.001]
[1764261782853,1.16591553,3023.7,3023.6,0.001]
[1764261783019,4.47312193,3023.7,3023.6,0.001]
[1764261783445,5.26938423,3023.7,3023.6,0.001]
[1764261783660,5.16938423,3023.7,3023.6,0.001]
[1764261783840,5.26938423,3023.7,3023.6,0.001]
[1764261787154,5.05938423,3023.7,3023.6,0.001]
[1764261787452,5.26938423,3023.7,3023.6,0.001]
[1764261789739,5.31072431,3023.7,3023.6,0.001]
[1764261790442,4.41446201,3023.7,3023.6,0.001]
[1764261790846,4.20446201,3023.7,3023.6,0.001]
[1764261791046,4.10326201,3023.7,3023.6,0.001]
[1764261791351,4.41446201,3023.7,3023.6,0.001]
[1764261793539,4.10326201,3023.7,3023.6,0.001]
[1764261794140,3.89326201,3023.7,3023.6,0.001]
[1764261794336,4.10326201,3023.7,3023.6,0.001]
[1764261795367,4.87253839,3023.7,3023.6,0.001]
[1764261795541,5.28373839,3023.7,3023.6,0.001]
[1764261797437,4.04856201,3023.7,3023.6,0.001]
[1764261801138,4.51296201,3023.7,3023.6,0.001]
[1764261801455,3.94856201,3023.7,3023.6,0.001]
[1764261801656,4.51296201,3023.7,3023.6,0.001]
[1764261802262,4.51216201,3023.7,3023.6,0.001]
[1764261802558,5.31232843,3023.7,3023.6,0.001]
[1764261803955,4.84792843,3023.7,3023.6,0.001]
[1764261804160,3.95156201,3023.7,3023.6,0.001]
[1764261804463,0.64435561,3023.7,3023.6,0.001]
[1764261804661,0.65965561,3023.7,3023.6,0.4662]
[1764261804862,3.92552193,3023.7,3023.6,0.4662]
[1764261805063,4.00642193,3023.7,3023.6,0.001]
[1764261806572,4.04776201,3023.7,3023.6,0.001]
[1764261806752,3.73944648,3023.7,3023.6,0.001]
[1764261807070,4.87318175,3023.7,3023.6,0.001]
[1764261807252,5.37868575,3023.7,3023.6,0.001]
[1764261807639,5.38068575,3023.7,3023.6,0.001]
[1764261808268,4.76518175,3023.7,3023.6,0.001]
[1764261808473,4.51078175,3023.7,3023.6,0.001]
[1764261808672,3.74144648,3023.7,3023.6,0.001]
[1764261809470,0.14334008,3023.7,3023.6,0.4662]
[1764261809677,3.6192064,3023.7,3023.6,0.4662]
[1764261809875,0.312,3023.7,3023.6,0.4662]
[1764261810550,3.4092064,3023.7,3023.6,0.4662]
[1764261810849,0.312,3023.7,3023.6,0.4662]
[1764261811364,3.6192064,3023.7,3023.6,0.4662]
[1764261811847,0.102,3023.7,3023.6,0.4662]
[1764261812171,0.212,3023.7,3023.6,0.4662]
[1764261812376,3.5192064,3023.7,3023.6,0.4662]
[1764261813268,3.7001064,3023.7,3023.6,0.001]
[1764261814276,3.71937327,3023.7,3023.6,0.4662]
[1764261814452,0.52216687,3023.7,3023.6,0.4662]
[1764261814852,0.31216687,3023.7,3023.6,0.4662]
[1764261815072,3.82937327,3023.7,3023.6,0.4662]
[1764261815784,0.52216687,3023.7,3023.6,0.4662]
[1764261816550,0.31216687,3023.7,3023.6,0.4662]
[1764261816770,0.31216687,3023.7,3023.6,1.29696965]
[1764261818480,0.31216687,3023.7,3023.6,4.60428543]
[1764261818676,0.31216687,3023.7,3023.6,5.78303879]
[1764261819356,0.31216687,3023.7,3023.6,4.60428543]
[1764261819753,0.31188017,3023.7,3023.6,4.60428543]
[1764261820973,0.31188017,3023.7,3023.6,5.78303879]
[1764261821352,0.31188017,3023.7,3023.6,4.60428543]
[1764261821876,0.002,3023.7,3023.6,5.53987954]
[1764261823480,0.002,3023.7,3023.6,6.72106496]
[1764261826081,0.0012,3023.7,3023.6,6.72106496]
[1764261826294,0.0012,3023.7,3023.6,5.53987954]
[1764261830393,0.0012,3023.7,3023.6,6.42432476]
[1764261832085,0.0012,3023.7,3023.6,6.42427628]
[1764261834498,0.0012,3023.7,3023.6,5.53987954]
[1764261837269,0.0012,3023.7,3023.6,6.42428155]
[1764261838280,0.0012,3023.7,3023.6,5.53987954]
[1764261838478,0.0012,3023.7,3023.6,5.08667954]
[1764261838680,0.0012,3023.7,3023.6,5.97154215]
[1764261839003,0.0695,3023.7,3023.6,1.61145672]
[1764261839575,0.0012,3023.7,3023.6,5.4116725]
[1764261839786,0.0012,3023.7,3023.6,2.10435672]
[1764261840405,0.1703,3023.7,3023.6,0.88586261]
[1764261840904,0.0703,3023.7,3023.6,0.88586261]
[1764261842378,0.37973622,3023.7,3023.6,0.88586261]
[1764261843975,0.37973622,3023.7,3023.6,4.19317839]
[1764261844304,0.0012,3023.7,3023.6,9.00721957]
[1764261844517,0.310797,3023.7,3023.6,9.00721957]
[1764261844878,0.310797,3023.7,3023.6,5.85399891]
[1764261845106,0.310797,3023.7,3023.6,5.39519891]
[1764261845601,0.310797,3023.7,3023.6,5.85399891]
[1764261846104,0.310797,3023.7,3023.6,5.39519891]
[1764261847407,0.310797,3023.7,3023.6,6.57638433]
[1764261849726,0.310797,3023.7,3023.6,5.85399891]
[1764261850024,0.309997,3023.7,3023.6,5.85399891]
[1764261850193,0.309997,3023.7,3023.6,7.03653081]
[1764261853423,0.309997,3023.7,3023.6,5.85399891]
[1764261854517,0.309997,3023.7,3023.6,9.08772126]
[1764261855929,0.309997,3023.7,3023.6,8.62892126]
[1764261856099,0.309997,3023.7,3023.6,9.09512126]
[1764261858102,0.309997,3023.7,3023.6,9.6337545]
[1764261860945,0.0004,3023.7,3023.6,9.6337545]
[1764261866440,0.0004,3023.7,3023.6,9.1675545]
[1764261867848,0.0004,3023.7,3023.6,9.6337545]
[1764261873659,0.0008,3024.1,3024.0,3.23372235]
[1764261873965,0.3106127,3024.1,3024.0,3.23372235]
[1764261874258,0.3106127,3024.1,3024.0,3.71082235]
[1764261875062,0.7813127,3024.1,3024.0,3.23372235]
[1764261875762,0.9606127,3024.1,3023.9,1.31409232]
[1764261875961,0.8598127,3024.0,3023.6,0.88788053]
[1764261876164,0.5707,3023.7,3023.6,0.001]
[1764261876340,1.1396127,3023.7,3023.6,0.001]
[1764261879943,4.4468191,3023.7,3023.6,0.001]
[1764261881166,1.1396127,3023.7,3023.6,0.001]
[1764261881361,4.4468191,3023.7,3023.6,0.001]
[1764261882847,1.1396127,3023.7,3023.6,0.001]
[1764261883047,4.4468191,3023.7,3023.6,0.001]
[1764261883735,1.1396127,3023.7,3023.6,0.001]
[1764261884144,4.4468191,3023.7,3023.6,0.001]
[1764261887271,4.48815918,3023.7,3023.6,0.001]
[1764261888278,5.2886856,3023.7,3023.6,0.001]
[1764261888454,8.52240795,3023.7,3023.6,0.001]
[1764261888658,8.48106787,3023.7,3023.6,0.001]
[1764261889043,5.24734552,3023.7,3023.6,0.001]
[1764261889243,5.2886856,3023.7,3023.6,0.001]
[1764261890385,4.43905918,3023.7,3023.6,0.001]
[1764261890685,4.51755918,3023.7,3023.6,0.001]
[1764261896952,4.30755918,3023.7,3023.6,0.001]
[1764261897158,4.51755918,3023.7,3023.6,0.001]
[1764261897354,4.51675918,3023.7,3023.6,0.001]
[1764261897756,6.04626161,3023.7,3023.6,0.001]
[1764261897957,0.1,3023.5,3023.4,0.001]
[1764261898169,0.90755951,3023.5,3023.4,0.001]
[1764261898487,1.53340749,3023.5,3023.4,0.001]
[1764261898683,3.60311512,3023.5,3023.4,0.001]
[1764261899761,10.14426263,3023.5,3023.4,0.001]
[1764261899963,10.10291982,3023.5,3023.4,0.001]
[1764261900390,10.10291982,3023.5,3023.2,0.001]
[1764261900391,0.505504,3023.3,3023.2,0.001]
[1764261900661,1.11276224,3023.3,3023.2,0.001]
[1764261900886,3.39137689,3023.3,3023.2,0.001]
[1764261901107,3.18137689,3023.3,3023.2,0.001]
[1764261901314,6.62509924,3023.3,3023.2,0.001]
[1764261902479,9.9327432,3023.3,3023.2,0.001]
[1764261902790,5.5265772,3023.3,3023.2,0.001]
[1764261902967,5.56792274,3023.3,3023.2,0.001]
[1764261903167,5.5265772,3023.3,3023.2,0.001]
[1764261904193,4.86022274,3023.3,3023.2,0.001]
[1764261904409,5.07022274,3023.3,3023.2,0.001]
[1764261904705,5.07022274,3023.3,3023.2,0.49]
[1764261904706,0.4098127,3023.3,3023.2,0.49]
[1764261904911,0.4098127,3023.3,3023.2,0.9518]
[1764261905113,0.4098127,3023.3,3023.2,0.49]
[1764261905605,0.4098127,3023.3,3023.2,0.9518]
[1764261906103,0.4098127,3023.3,3023.2,0.49]
[1764261907504,3.71745666,3023.3,3023.2,0.49]
[1764261908004,0.40922071,3023.3,3023.2,0.49]
[1764261908372,0.40922071,3023.3,3023.2,0.9518]
[1764261908699,0.40922071,3023.3,3023.2,1.39729332]
[1764261909616,0.30922071,3023.3,3023.2,7.49327572]
[1764261910208,0.30922071,3023.3,3023.2,4.25955337]
[1764261910513,0.30922071,3023.3,3023.2,0.9518]
[1764261910804,0.30922071,3023.3,3023.2,4.25955337]
[1764261910978,0.40922071,3023.3,3023.2,0.9518]
[1764261911182,0.40922071,3023.3,3023.2,4.25955337]
[1764261911528,0.40922071,3023.3,3023.2,5.03592557]
[1764261911669,0.40922071,3023.3,3023.2,1.7281722]
[1764261912314,0.40922071,3023.3,3023.2,0.49]
[1764261912475,0.40922071,3023.3,3023.2,0.001]
[1764261912825,7.49608702,3023.3,3023.2,0.001]
[1764261913485,7.90159102,3023.3,3023.2,0.001]
[1764261914389,7.59237031,3023.3,3023.2,0.001]
[1764261914597,8.99175939,3023.3,3023.2,0.001]
[1764261915194,5.56253304,3023.3,3023.2,0.001]
[1764261915502,5.60387858,3023.3,3023.2,0.001]
[1764261916090,9.24310493,3023.3,3023.2,0.001]
[1764261916289,5.96803704,3023.3,3023.2,0.001]
[1764261916488,6.00938258,3023.3,3023.2,0.001]
[1764261916801,9.89284767,3023.3,3023.2,0.001]
[1764261917000,9.85150213,3023.3,3023.2,0.001]
[1764261918196,12.60334713,3023.3,3023.2,0.001]
[1764261918404,9.85150213,3023.3,3023.2,0.001]
[1764261921025,9.85070213,3023.3,3023.2,0.001]
[1764261925634,9.85270213,3023.3,3023.2,0.001]
[1764261926424,9.64270213,3023.3,3023.2,0.001]
[1764261926928,9.85270213,3023.3,3023.2,0.001]
[1764261927140,9.40610213,3023.3,3023.2,0.001]
[1764261927511,9.40603209,3023.3,3023.2,0.001]
[1764261927716,9.85263209,3023.3,3023.2,0.001]
[1764261928022,0.41052788,3023.3,3023.2,0.9589]
[1764261928224,3.92817184,3023.3,3023.2,0.9589]
[1764261928625,0.62052788,3023.3,3023.2,0.9589]
[1764261928933,3.92817184,3023.3,3023.2,0.9589]
[1764261929225,0.41052788,3023.3,3023.2,0.9589]
[1764261929426,0.62052788,3023.3,3023.2,0.9589]
[1764261929836,3.92817184,3023.3,3023.2,0.9589]
[1764261930627,3.71817184,3023.3,3023.2,0.9589]
[1764261933037,5.17649206,3023.3,3023.2,0.001]
[1764261934610,5.62309206,3023.3,3023.2,0.001]
[1764261934808,6.34868617,3023.3,3023.2,0.001]
[1764261935716,0.0045,3023.1,3022.8,0.001]
[1764261935905,7.88415073,3022.9,3022.8,0.001]
[1764261936234,8.40347861,3022.9,3022.8,0.001]
[1764261936547,5.69570763,3022.9,3022.8,0.001]
[1764261937112,5.73705904,3022.9,3022.8,0.001]
[1764261937317,7.07587194,3022.9,3022.8,0.001]
[1764261937518,7.03452092,3022.9,3022.8,0.001]
[1764261941932,6.82452092,3022.9,3022.8,0.001]
[1764261942113,7.03452092,3022.9,3022.8,0.001]
[1764261944852,7.03372092,3022.9,3022.8,0.001]
[1764261947248,7.03371515,3022.9,3022.8,0.001]
[1764261948456,7.52650576,3022.9,3022.8,0.001]
[1764261948926,7.03371515,3022.9,3022.8,0.001]
[1764261949449,10.64831894,3022.9,3022.8,0.001]
[1764261950219,10.64831894,3022.9,3022.4,0.001]
[1764261950220,0.504704,3022.2,3022.1,0.001]
[1764261950422,1.7954812,3022.2,3022.1,0.001]
[1764261950648,2.2602812,3022.2,3022.1,0.001]
[1764261950836,5.56912905,3022.2,3022.1,0.001]
[1764261954459,5.10432905,3022.2,3022.1,0.001]
[1764261954659,5.59239973,3022.2,3022.1,0.4782]
[1764261954968,5.09982905,3022.2,3022.1,0.9465]
[1764261955274,5.09982905,3022.2,3022.1,1.1422]
[1764261955626,5.09982905,3022.2,3022.1,0.6739]
[1764261955836,4.88982905,3022.2,3022.1,0.6739]
[1764261956048,4.69432505,3022.2,3022.1,0.6739]
[1764261958159,4.69432505,3022.2,3022.1,0.001]
[1764261958160,5.18412905,3022.2,3022.1,0.001]
[1764261958359,5.98443619,3022.2,3022.1,0.001]
[1764261958568,9.14410943,3022.2,3022.1,0.001]
[1764261958742,9.10274884,3022.2,3022.1,0.001]
[1764261960553,9.56374884,3022.2,3022.1,0.001]
[1764261961360,9.01844884,3022.2,3022.1,0.4782]
[1764261961660,8.2181417,3022.2,3022.1,0.4782]
[1764261962061,8.2181417,3022.2,3022.1,1.1422]
[1764261962362,8.0081417,3022.2,3022.1,1.1422]
[1764261962663,5.05846846,3022.2,3022.1,1.1422]
[1764261962866,5.09982905,3022.2,3022.1,1.1422]
[1764261965662,4.69432505,3022.2,3022.1,1.1422]
[1764261968263,5.90033619,3022.2,3022.1,0.4782]
[1764261968465,5.90033619,3022.2,3022.1,1.1422]
[1764261968664,5.09902905,3022.2,3022.1,1.1422]
[1764261970471,4.88902905,3022.2,3022.1,1.1422]
[1764261970650,5.09902905,3022.2,3022.1,1.1402]
[1764261972077,4.69352505,3022.2,3022.1,1.1402]
[1764261973673,4.48352505,3022.2,3022.1,1.1402]
[1764261973977,3.96793094,3022.2,3022.1,1.1402]
[1764261974364,3.75793094,3022.2,3022.1,1.1402]
[1764261974684,0.6177225,3022.2,3022.1,1.1402]
[1764261974846,0.0992,3022.2,3022.1,1.1402]
[1764261975045,0.002,3022.8,3022.3,0.4793]
[1764261975350,0.002,3022.8,3022.7,0.4793]
[1764261975351,0.212,3022.8,3022.7,0.4793]
[1764261975550,0.312,3022.8,3022.7,0.4793]
[1764261975752,0.102,3022.8,3022.7,0.9456]
[1764261977275,0.102,3022.8,3022.7,1.3710081]
[1764261977855,0.102,3022.8,3022.7,0.9456]
[1764261979472,0.002,3022.8,3022.7,0.9456]
[1764261980587,0.31082736,3022.8,3022.7,0.9456]
[1764261980762,0.31082736,3022.8,3022.7,4.97949463]
[1764261980963,0.002,3022.8,3022.7,4.97949463]
[1764261981488,0.002,3022.8,3022.7,5.8082943]
[1764261984286,0.002,3022.8,3022.7,2.49999378]
[1764261984589,0.002,3022.8,3022.7,5.8082943]
[1764261985562,0.002,3022.8,3022.7,2.49999378]
[1764261985970,0.002,3022.8,3022.7,5.8082943]
[1764261987157,0.002,3022.8,3022.7,2.49999378]
[1764261987361,0.002,3022.8,3022.7,4.97949463]
[1764261987584,0.102,3022.8,3022.7,1.67119411]
[1764261988363,0.002,3022.8,3022.7,4.97949463]
[1764261989392,0.002,3022.8,3022.7,0.9456]
[1764261989618,0.102,3022.8,3022.7,0.9456]
[1764261990887,3.41019108,3022.8,3022.4,0.4663]
[1764261991092,3.41019108,3022.8,3022.7,0.4793]
[1764261991293,3.92836395,3022.8,3022.7,0.4793]
[1764261991501,0.1,3022.6,3022.5,0.4663]
[1764261991864,0.1,3022.6,3022.5,0.4793]
[1764261992070,0.40817287,3022.6,3022.5,0.4793]
[1764261992308,0.40737287,3022.6,3022.5,0.4793]
[1764261993102,0.0992,3022.2,3022.1,0.663]
[1764261993285,0.3092,3022.2,3022.1,0.663]
[1764261993461,0.3092,3022.2,3022.1,1.1423]
[1764261993667,0.3092,3022.2,3022.1,0.4803]
[1764261993985,0.61754672,3022.2,3022.1,0.4803]
[1764261994586,0.61754672,3022.2,3022.1,1.1409]
[1764261997676,0.61754672,3022.2,3022.1,0.4803]
[1764261997914,0.61754672,3022.2,3022.1,0.001]
[1764261998221,0.61754672,3022.2,3022.1,1.1409]
[1764261998377,0.61754672,3022.2,3022.1,0.4803]
[1764261999504,0.61754672,3022.2,3022.1,1.1409]
[1764262000578,0.61754672,3022.2,3022.1,0.001]